bitfinex/quotes_SOLUSD_20241126
["timestamp","ask_amount","ask_price","bid_price","bid_amount"]
[1732615947323,27.67264167,232.71,232.64,27.67264167]
[1732615947722,27.67264167,232.72,232.65,27.67264167]
[1732615948425,27.67264167,232.71,232.65,27.67264167]
[1732615948630,27.67264167,232.68,232.6,27.67264167]
[1732615948839,27.67264167,232.66,232.59,27.67264167]
[1732615949150,28.073784,232.73,232.54,7.95874604]
[1732615949151,27.67264167,232.62,232.55,27.67264167]
[1732615949445,27.67264167,232.65,232.58,27.67264167]
[1732615950116,27.67264167,232.67,232.61,27.67264167]
[1732615950323,27.67264167,232.68,232.61,27.67264167]
[1732615950949,27.67264167,232.69,232.62,27.67264167]
[1732615951116,23.776884,232.68,232.62,27.67264167]
[1732615951316,27.67264167,232.69,232.62,27.67264167]
[1732615951741,27.67264167,232.68,232.62,27.67264167]
[1732615952045,27.67264167,232.69,232.62,27.67264167]
[1732615953134,27.67264167,232.63,232.54,20.0]
[1732615953344,27.67264167,232.63,232.56,27.67264167]
[1732615953547,27.67264167,232.64,232.57,27.67264167]
[1732615953720,27.67264167,232.65,232.58,27.67264167]
[1732615954745,27.67264167,232.68,232.61,27.67264167]
[1732615955144,27.67264167,232.69,232.62,27.67264167]
[1732615956329,27.67264167,232.68,232.61,31.97154167]
[1732615956534,27.67264167,232.67,232.61,4.2989]
[1732615957136,27.67264167,232.71,232.64,27.67264167]
[1732615957440,23.776884,232.72,232.65,27.67264167]
[1732615957636,51.44952567,232.72,232.65,27.67264167]
[1732615958054,51.44952567,232.72,232.64,27.67264167]
[1732615958351,55.74652567,232.72,232.64,27.67264167]
[1732615958557,27.67264167,232.66,232.58,20.0]
[1732615958748,27.67264167,232.64,232.57,27.67264167]
[1732615958928,27.67264167,232.63,232.56,27.67264167]
[1732615959136,27.67264167,232.62,232.55,27.67264167]
[1732615960045,27.67264167,232.61,232.54,27.67264167]
[1732615960350,27.67264167,232.68,232.49,16.3671]
[1732615960351,27.67264167,232.62,232.55,27.67264167]
[1732615960834,31.97144167,232.63,232.56,27.67264167]
[1732615961256,27.67264167,232.62,232.55,27.67264167]
[1732615962334,31.97144167,232.62,232.55,27.67264167]
[1732615962855,27.67264167,232.59,232.52,27.67264167]
[1732615963855,27.67264167,232.56,232.48,33.98744167]
[1732615964161,27.67264167,232.56,232.49,27.67264167]
[1732615964656,27.67264167,232.56,232.48,33.98744167]
[1732615964861,27.67264167,232.52,232.45,27.67264167]
[1732615965229,27.67264167,232.51,232.44,27.67264167]
[1732615965429,27.67264167,232.5,232.43,47.03224167]
[1732615965645,27.67264167,232.51,232.44,27.67264167]
[1732615966037,27.67264167,232.54,232.47,27.67264167]
[1732615966931,27.67264167,232.54,232.47,31.97414167]
[1732615967141,27.67264167,232.58,232.51,27.67264167]
[1732615967340,27.67264167,232.59,232.52,27.67264167]
[1732615967746,27.67264167,232.58,232.51,27.67264167]
[1732615969054,27.67264167,232.58,232.52,27.67264167]
[1732615969560,27.67264167,232.59,232.52,27.67264167]
[1732615969855,31.97204167,232.59,232.52,27.67264167]
[1732615970054,4.2994,232.59,232.46,20.0]
[1732615970357,27.67264167,232.52,232.45,27.67264167]
[1732615970859,27.67264167,232.57,232.5,27.67264167]
[1732615971159,27.67264167,232.58,232.5,27.67264167]
[1732615971556,27.67264167,232.57,232.5,27.67264167]
[1732615972055,27.67264167,232.56,232.49,27.67264167]
[1732615972360,27.67264167,232.55,232.48,31.97394167]
[1732615972653,27.67264167,232.56,232.49,27.67264167]
[1732615973049,27.67264167,232.57,232.5,27.67264167]
[1732615973254,27.67264167,232.56,232.49,27.67264167]
[1732615973451,23.776884,232.5,232.38,4.3032]
[1732615973637,27.67264167,232.45,232.38,27.67264167]
[1732615973832,27.67264167,232.45,232.37,27.67264167]
[1732615974530,27.67264167,232.46,232.38,27.67264167]
[1732615974837,27.67264167,232.44,232.37,27.67264167]
[1732615975260,4.3018,232.46,232.33,27.67264167]
[1732615975261,27.67264167,232.41,232.33,27.67264167]
[1732615976145,27.67264167,232.41,232.31,4.3044]
[1732615976146,27.67264167,232.39,232.28,0.5080345]
[1732615976347,27.67264167,232.35,232.28,28.18067617]
[1732615976856,27.67264167,232.31,232.28,0.5080345]
[1732615977052,27.67264167,232.35,232.28,0.5080345]
[1732615977264,27.67264167,232.34,232.28,0.5080345]
[1732615977446,27.67264167,232.37,232.3,27.67264167]
[1732615977642,27.67264167,232.38,232.31,27.67264167]
[1732615978846,27.67264167,232.38,232.3,27.67264167]
[1732615979047,27.67264167,232.38,232.29,4.3049]
[1732615979048,27.67264167,232.38,232.31,27.67264167]
[1732615979266,4.303,232.4,232.31,27.67264167]
[1732615979267,27.67264167,232.39,232.31,27.67264167]
[1732615979647,27.67264167,232.38,232.31,27.67264167]
[1732615980061,27.67264167,232.42,232.35,27.67264167]
[1732615980268,12.37275593,232.45,232.39,27.67264167]
[1732615980769,27.67264167,232.44,232.37,27.67264167]
[1732615980948,12.37275593,232.45,232.34,20.0]
[1732615981147,12.20272488,232.54,232.35,20.0]
[1732615981356,6.5066,232.54,232.35,20.0]
[1732615981555,5.65220396,232.58,232.39,25.0]
[1732615981771,4.2992,232.6,232.43,5.0]
[1732615981976,27.67264167,232.58,232.51,27.67264167]
[1732615982346,27.67264167,232.55,232.48,27.67264167]
[1732615982558,27.67264167,232.55,232.47,27.67264167]
[1732615982860,27.67264167,232.56,232.48,27.67264167]
[1732615983247,27.67264167,232.55,232.48,27.67264167]
[1732615983447,27.67264167,232.57,232.5,27.67264167]
[1732615983752,27.67264167,232.58,232.5,27.67264167]
[1732615984147,27.67264167,232.58,232.51,27.67264167]
[1732615984970,27.67264167,232.59,232.51,27.67264167]
[1732615985480,28.076184,232.6,232.51,27.67264167]
[1732615985481,27.67264167,232.58,232.51,27.67264167]
[1732615986969,31.97204167,232.59,232.51,27.67264167]
[1732615987548,11.5066,232.67,232.55,27.67264167]
[1732615987549,27.67264167,232.62,232.55,27.67264167]
[1732615987753,27.67264167,232.59,232.51,31.97344167]
[1732615987970,27.67264167,232.6,232.52,27.67264167]
[1732615988282,27.67264167,232.6,232.53,27.67264167]
[1732615988653,27.67264167,232.61,232.54,27.67264167]
[1732615988853,27.67264167,232.62,232.54,27.67264167]
[1732615989056,27.67264167,232.64,232.57,27.67264167]
[1732615990062,27.67264167,232.6,232.53,27.67264167]
[1732615990373,27.67264167,232.59,232.51,27.67264167]
[1732615991281,27.67264167,232.6,232.53,27.67264167]
[1732615991480,17.2517,232.67,232.49,22.1254]
[1732615991481,27.67264167,232.61,232.54,27.67264167]
[1732615991656,27.67264167,232.6,232.53,27.67264167]
[1732615991979,27.67264167,232.55,232.48,27.67264167]
[1732615992278,27.67264167,232.49,232.41,27.67264167]
[1732615992483,27.67264167,232.45,232.39,27.67264167]
[1732615992859,27.67264167,232.45,232.37,16.0989]
[1732615992860,27.67264167,232.45,232.37,43.77154167]
[1732615993162,27.67264167,232.45,232.37,31.97604167]
[1732615993380,27.67264167,232.45,232.39,27.67264167]
[1732615993571,31.97464167,232.45,232.39,27.67264167]
[1732615993886,27.67264167,232.45,232.39,27.67264167]
[1732615994657,27.67264167,232.45,232.37,27.67264167]
[1732615994867,27.67264167,232.43,232.35,27.67264167]
[1732615995474,27.67264167,232.41,232.33,27.67264167]
[1732615995675,27.67264167,232.39,232.31,27.67264167]
[1732615996380,27.67264167,232.39,232.31,31.97714167]
[1732615996583,27.67264167,232.41,232.33,27.67264167]
[1732615997968,15.055,232.48,232.35,27.67264167]
[1732615997969,27.67264167,232.43,232.35,27.67264167]
[1732615998991,31.97504167,232.43,232.35,27.67264167]
[1732615999295,27.67264167,232.37,232.29,27.67264167]
[1732615999876,23.776884,232.36,232.29,27.67264167]
[1732616000504,23.776884,232.36,232.28,0.5080345]
[1732616000505,27.67264167,232.35,232.28,0.5080345]
[1732616000963,23.776884,232.34,232.28,0.5080345]
[1732616001175,27.67264167,232.33,232.28,0.5080345]
[1732616001591,23.776884,232.32,232.28,0.5080345]
[1732616002095,27.67264167,232.33,232.28,0.5080345]
[1732616002273,4.3039,232.35,232.28,28.18067617]
[1732616002473,27.67264167,232.34,232.28,28.18067617]
[1732616002679,27.67264167,232.34,232.28,0.5080345]
[1732616003198,4.3042,232.33,232.28,0.5080345]
[1732616003499,31.97674167,232.34,232.28,0.5080345]
[1732616003988,4.3041,232.34,232.28,0.5080345]
[1732616004405,27.67264167,232.35,232.28,0.5080345]
[1732616004605,31.97654167,232.35,232.28,0.5080345]
[1732616004979,23.776884,232.34,232.28,0.5080345]
[1732616005174,4.3042,232.33,232.28,0.5080345]
[1732616005379,60.347584,232.29,232.28,0.5080345]
[1732616006081,88.02022567,232.29,232.28,0.5080345]
[1732616007185,92.32512567,232.29,232.28,0.5080345]
[1732616010602,97.32512567,232.29,232.28,0.5080345]
[1732616010778,92.32512567,232.29,232.28,0.5080345]
[1732616011283,75.75442567,232.29,232.28,0.5080345]
[1732616014477,31.97754167,232.29,232.28,0.5080345]
[1732616014703,27.67264167,232.29,232.28,0.5080345]
[1732616014888,4.3047,232.31,232.28,0.5080345]
[1732616014889,27.67264167,232.31,232.28,0.5080345]
[1732616015093,10.7589,232.37,232.28,0.5080345]
[1732616015094,27.67264167,232.32,232.28,0.5080345]
[1732616015335,27.67264167,232.34,232.28,0.5080345]
[1732616015484,27.67264167,232.34,232.28,28.18067617]
[1732616015816,34.04224167,232.44,232.28,28.18067617]
[1732616015817,27.67264167,232.38,232.31,27.67264167]
[1732616016110,27.67264167,232.35,232.28,32.48577617]
[1732616016284,27.67264167,232.34,232.28,0.5080345]
[1732616016478,27.67264167,232.32,232.28,0.5080345]
[1732616017105,27.67264167,232.31,232.28,0.5080345]
[1732616017475,27.67264167,232.32,232.28,0.5080345]
[1732616018286,4.3043,232.33,232.28,0.5080345]
[1732616018287,27.67264167,232.33,232.28,0.5080345]
[1732616018802,27.67264167,232.34,232.28,0.5080345]
[1732616018998,27.67264167,232.33,232.28,0.5080345]
[1732616019404,27.67264167,232.35,232.28,0.5080345]
[1732616019918,27.67264167,232.32,232.28,0.5080345]
[1732616020398,17.35897482,232.33,232.28,0.5080345]
[1732616022092,17.35897482,232.32,232.28,0.5080345]
[1732616022491,17.35897482,232.33,232.28,0.5080345]
[1732616022790,10.7576,232.4,232.28,0.5080345]
[1732616022791,17.35897482,232.32,232.28,0.5080345]
[1732616024116,17.35897482,232.36,232.29,17.35897482]
[1732616024282,17.35897482,232.37,232.3,17.35897482]
[1732616024483,17.35897482,232.38,232.3,17.35897482]
[1732616024706,17.35897482,232.38,232.31,17.35897482]
[1732616024912,17.35897482,232.36,232.29,17.35897482]
[1732616025915,17.35897482,232.3,232.28,0.5080345]
[1732616026092,17.35897482,232.29,232.28,0.5080345]
[1732616026289,41.13585882,232.29,232.28,0.5080345]
[1732616027908,45.44075882,232.29,232.28,0.5080345]
[1732616028888,41.13585882,232.29,232.28,0.5080345]
[1732616032023,45.44075882,232.29,232.28,0.5080345]
[1732616034430,17.35897482,232.31,232.28,0.5080345]
[1732616034601,17.35897482,232.29,232.28,0.5080345]
[1732616035627,17.35897482,232.3,232.28,0.5080345]
[1732616035808,17.35897482,232.29,232.28,0.5080345]
[1732616036516,21.66387482,232.29,232.28,0.5080345]
[1732616036826,45.44075882,232.29,232.28,0.5080345]
[1732616039422,21.66387482,232.29,232.28,0.5080345]
[1732616040643,45.44075882,232.29,232.28,0.5080345]
[1732616044031,23.776884,232.28,232.15,15.1098]
[1732616044341,41.13585882,232.16,232.11,6.3616]
[1732616044552,17.35897482,232.13,232.1,15.9855]
[1732616044739,17.35897482,232.15,232.1,15.9855]
[1732616045046,17.35897482,232.14,232.1,15.9855]
[1732616045384,17.35897482,232.11,232.04,0.5080345]
[1732616045514,17.35897482,232.05,232.04,0.5080345]
[1732616045711,17.35897482,232.06,232.04,0.5080345]
[1732616045911,22.35897482,232.2,232.05,17.35897482]
[1732616045912,17.35897482,232.14,232.05,17.35897482]
[1732616046140,17.35897482,232.12,232.05,33.34447482]
[1732616046339,17.35897482,232.13,232.06,17.35897482]
[1732616046849,17.35897482,232.12,232.05,15.9855]
[1732616047943,17.35897482,232.12,232.05,33.34447482]
[1732616048153,17.35897482,232.16,232.09,17.35897482]
[1732616048446,17.35897482,232.18,232.1,17.35897482]
[1732616048617,17.35897482,232.17,232.09,17.35897482]
[1732616049234,17.35897482,232.16,232.09,17.35897482]
[1732616049952,17.35897482,232.19,232.12,17.35897482]
[1732616050139,17.35897482,232.23,232.16,17.35897482]
[1732616050548,17.35897482,232.22,232.14,17.35897482]
[1732616050852,17.35897482,232.22,232.15,17.35897482]
[1732616051154,17.35897482,232.21,232.14,17.35897482]
[1732616051450,17.35897482,232.19,232.12,17.35897482]
[1732616052052,17.35897482,232.18,232.09,4.3086]
[1732616052351,17.35897482,232.18,232.1,17.35897482]
[1732616052730,17.35897482,232.18,232.11,17.35897482]
[1732616053651,17.35897482,232.18,232.1,17.35897482]
[1732616053833,17.35897482,232.16,232.08,17.35897482]
[1732616054027,17.35897482,232.14,232.07,4.3089]
[1732616054536,17.35897482,232.16,232.09,17.35897482]
[1732616054738,17.35897482,232.19,232.11,17.35897482]
[1732616054938,17.35897482,232.2,232.13,17.35897482]
[1732616055146,17.35897482,232.24,232.17,17.35897482]
[1732616055389,17.35897482,232.25,232.18,17.35897482]
[1732616055661,17.35897482,232.26,232.18,32.56597482]
[1732616055855,17.35897482,232.25,232.18,32.56597482]
[1732616056149,29.7384706,232.32,232.12,15.078]
[1732616056150,17.35897482,232.19,232.12,19.5151]
[1732616056976,17.35897482,232.2,232.12,36.87407482]
[1732616057667,17.35897482,232.19,232.12,19.5151]
[1732616057845,17.35897482,232.2,232.12,36.87407482]
[1732616058252,17.35897482,232.23,232.15,17.35897482]
[1732616058454,17.35897482,232.25,232.17,17.35897482]
[1732616059378,17.35897482,232.24,232.17,21.66597482]
[1732616059673,17.35897482,232.18,232.12,15.207]
[1732616059875,20.0659,232.31,232.12,15.207]
[1732616059876,17.35897482,232.17,232.12,15.207]
[1732616060412,17.35897482,232.16,232.12,15.207]
[1732616061066,17.35897482,232.15,232.12,15.207]
[1732616062359,17.35897482,232.13,232.08,4.3087]
[1732616062875,17.35897482,232.13,232.06,19.5162]
[1732616063058,17.35897482,232.15,232.07,17.35897482]
[1732616063268,4.3072,232.17,232.06,15.207]
[1732616063571,17.35897482,232.08,232.04,0.5080345]
[1732616064076,17.35897482,232.06,232.04,0.5080345]
[1732616066366,17.35897482,232.08,232.04,0.5080345]
[1732616066687,17.35897482,232.07,232.04,0.5080345]
[1732616067195,17.35897482,232.06,232.04,0.5080345]
[1732616067486,17.35897482,232.05,232.04,0.5080345]
[1732616068691,45.44525882,232.05,232.04,0.5080345]
[1732616068898,4.3088,232.09,232.04,0.5080345]
[1732616069068,4.3084,232.11,232.04,0.5080345]
[1732616069262,17.35897482,232.06,232.04,0.5080345]
[1732616069567,17.35897482,232.05,232.04,0.5080345]
[1732616072178,17.35897482,232.09,232.04,4.8175345]
[1732616072370,17.35897482,232.12,232.04,28.20820932]
[1732616072899,17.35897482,232.11,232.04,28.20820932]
[1732616073874,17.35897482,232.12,232.05,33.07797482]
[1732616074386,17.35897482,232.1,232.06,4.3092]
[1732616074570,17.35897482,232.08,232.05,15.719]
[1732616075172,17.35897482,232.09,232.05,15.719]
[1732616075392,17.35897482,232.11,232.05,20.0283]
[1732616075590,17.35897482,232.13,232.06,17.35897482]
[1732616075972,4.3068,232.19,232.05,37.38727482]
[1732616075973,17.35897482,232.12,232.05,37.38727482]
[1732616076375,17.35897482,232.12,232.05,20.0283]
[1732616076683,17.35897482,232.11,232.05,20.0283]
[1732616077575,17.35897482,232.13,232.06,17.35897482]
[1732616077784,17.35897482,232.15,232.08,17.35897482]
[1732616078088,17.35897482,232.11,232.05,20.0283]
[1732616078290,17.35897482,232.1,232.05,20.0283]
[1732616078594,17.35897482,232.11,232.05,20.0283]
[1732616080185,17.35897482,232.12,232.05,37.38727482]
[1732616080500,17.35897482,232.13,232.06,17.35897482]
[1732616080688,17.35897482,232.12,232.05,42.38727482]
[1732616082405,17.35897482,232.13,232.06,17.35897482]
[1732616082575,4.307,232.18,232.05,25.0283]
[1732616082576,17.35897482,232.14,232.07,21.66797482]
[1732616083088,17.35897482,232.11,232.07,4.309]
[1732616083410,17.35897482,232.08,232.05,20.0282]
[1732616083570,17.35897482,232.1,232.05,20.0282]
[1732616083979,17.35897482,232.11,232.05,20.0282]
[1732616084875,17.35897482,232.12,232.05,37.38717482]
[1732616085077,17.35897482,232.14,232.07,17.35897482]
[1732616085289,17.35897482,232.17,232.1,17.35897482]
[1732616086403,17.35897482,232.17,232.1,21.66737482]
[1732616086608,17.35897482,232.18,232.11,17.35897482]
[1732616086810,4.3066,232.21,232.14,17.35897482]
[1732616086811,17.35897482,232.21,232.14,17.35897482]
[1732616087100,17.35897482,232.22,232.15,17.35897482]
[1732616087677,4.3053,232.27,232.14,17.35897482]
[1732616087886,17.35897482,232.22,232.15,17.35897482]
[1732616088094,17.35897482,232.2,232.14,17.35897482]
[1732616089385,17.35897482,232.2,232.13,17.35897482]
[1732616089583,17.35897482,232.2,232.14,17.35897482]
[1732616090439,17.35897482,232.21,232.15,4.3075]
[1732616092006,17.35897482,232.22,232.15,21.66647482]
[1732616092313,17.35897482,232.25,232.18,17.35897482]
[1732616092486,4.3045,232.31,232.17,17.35897482]
[1732616092691,17.35897482,232.23,232.16,38.59147482]
[1732616092901,17.35897482,232.22,232.16,21.2325]
[1732616093090,17.35897482,232.21,232.16,21.2325]
[1732616093305,17.35897482,232.2,232.16,21.2325]
[1732616093887,17.35897482,232.21,232.16,21.2325]
[1732616094092,23.776884,232.3,232.16,21.2325]
[1732616094093,17.35897482,232.2,232.16,21.2325]
[1732616094510,17.35897482,232.17,232.11,19.4639]
[1732616095016,17.35897482,232.16,232.11,19.4639]
[1732616095316,17.35897482,232.17,232.11,15.1556]
[1732616095611,17.35897482,232.18,232.12,4.3081]
[1732616096306,15.0679,232.28,232.14,17.35897482]
[1732616096307,17.35897482,232.21,232.14,17.35897482]
[1732616096618,17.35897482,232.23,232.15,17.35897482]
[1732616097312,17.35897482,232.23,232.16,4.3073]
[1732616097505,17.35897482,232.22,232.16,4.3073]
[1732616098015,17.35897482,232.21,232.16,4.3073]
[1732616098229,17.35897482,232.2,232.14,4.3076]
[1732616099205,17.35897482,232.18,232.13,4.3079]
[1732616100013,17.35897482,232.19,232.13,4.3079]
[1732616100431,17.35897482,232.2,232.13,21.66687482]
[1732616100598,17.35897482,232.2,232.13,4.3079]
[1732616101122,17.35897482,232.21,232.14,17.35897482]
[1732616101705,17.35897482,232.22,232.16,17.35897482]
[1732616101899,4.3053,232.27,232.16,17.35897482]
[1732616101900,17.35897482,232.23,232.16,17.35897482]
[1732616102098,17.35897482,232.22,232.17,4.3071]
[1732616103122,17.35897482,232.22,232.15,21.66637482]
[1732616103723,17.35897482,232.22,232.16,17.35897482]
[1732616104025,4.3045,232.31,232.21,17.35897482]
[1732616104321,17.35897482,232.28,232.22,17.35897482]
[1732616104506,17.35897482,232.27,232.21,17.35897482]
[1732616105114,17.35897482,232.28,232.22,17.35897482]
[1732616105622,17.35897482,232.28,232.22,21.66507482]
[1732616105931,4.3052,232.28,232.2,4.3064]
[1732616106233,4.3052,232.28,232.15,12.43988036]
[1732616106234,17.35897482,232.21,232.16,4.3073]
[1732616106531,17.35897482,232.17,232.11,15.1556]
[1732616106826,17.35897482,232.16,232.11,19.4639]
[1732616107002,17.35897482,232.14,232.06,19.9108]
[1732616107209,17.35897482,232.1,232.06,15.6016]
[1732616107509,17.35897482,232.11,232.06,15.6016]
[1732616109724,17.35897482,232.17,232.1,17.35897482]
[1732616109905,17.35897482,232.14,232.07,17.35897482]
[1732616110100,17.35897482,232.11,232.06,15.6016]
[1732616110338,17.35897482,232.2,232.04,0.5080345]
[1732616110339,17.35897482,232.09,232.04,0.5080345]
[1732616110624,17.35897482,232.12,232.05,17.35897482]
[1732616111020,17.35897482,232.15,232.09,17.35897482]
[1732616111225,17.35897482,232.15,232.04,4.8174345]
[1732616111226,17.35897482,232.2,232.13,17.35897482]
[1732616111513,17.35897482,232.22,232.15,17.35897482]
[1732616111718,4.3047,232.3,232.15,4.3075]
[1732616112103,17.35897482,232.28,232.21,17.35897482]
[1732616112319,27.78289135,232.27,232.21,27.78289135]
[1732616112521,27.78289135,232.28,232.21,27.78289135]
[1732616112719,27.78289135,232.26,232.2,27.78289135]
[1732616113113,27.78289135,232.26,232.19,27.78289135]
[1732616113427,27.78289135,232.23,232.17,4.3071]
[1732616113601,27.78289135,232.23,232.16,27.78289135]
[1732616113806,27.78289135,232.26,232.19,27.78289135]
[1732616114226,27.78289135,232.23,232.15,4.3074]
[1732616114400,27.78289135,232.22,232.15,32.09029135]
[1732616114607,27.78289135,232.21,232.15,4.3074]
[1732616114809,27.78289135,232.2,232.15,4.3074]
[1732616115210,27.78289135,232.21,232.14,34.18269135]
[1732616115523,27.78289135,232.22,232.15,27.78289135]
[1732616116030,27.78289135,232.21,232.14,38.49029135]
[1732616116406,27.78289135,232.15,232.09,6.4382]
[1732616116605,27.78289135,232.18,232.11,27.78289135]
[1732616116834,27.78289135,232.19,232.13,27.78289135]
[1732616117025,27.78289135,232.21,232.14,27.78289135]
[1732616117714,27.78289135,232.2,232.12,27.78289135]
[1732616117920,27.78289135,232.16,232.09,38.52969135]
[1732616118124,27.78289135,232.12,232.08,16.5012]
[1732616118311,27.78289135,232.2,232.04,28.29092585]
[1732616118312,27.78289135,232.1,232.04,4.8175345]
[1732616118509,27.78289135,232.11,232.04,28.29092585]
[1732616118713,20.0,232.16,232.04,0.5080345]
[1732616118931,38.853184,232.15,232.04,0.5080345]
[1732616119735,27.78289135,232.09,232.04,0.5080345]
[1732616120028,27.78289135,232.07,232.04,0.5080345]
[1732616120207,27.78289135,232.06,232.04,0.5080345]
[1732616120409,27.78289135,232.05,232.04,0.5080345]
[1732616121026,32.09229135,232.05,232.04,0.5080345]
[1732616121521,55.86917535,232.05,232.04,0.5080345]
[1732616122233,32.09229135,232.05,232.04,0.5080345]
[1732616122912,55.86917535,232.05,232.04,0.5080345]
[1732616123137,23.776884,232.04,231.88,10.7506]
[1732616123440,23.776884,232.04,231.88,4.3124]
[1732616123643,27.78289135,231.94,231.88,4.3124]
[1732616124131,27.78289135,231.95,231.88,4.3124]
[1732616124350,27.78289135,231.89,231.76,5.0]
[1732616124515,27.78289135,231.82,231.67,5.0]
[1732616124712,27.78289135,231.82,231.75,27.78289135]
[1732616124911,27.78289135,231.82,231.74,27.78289135]
[1732616125136,27.78289135,231.82,231.71,22.9394]
[1732616125345,27.78289135,231.82,231.67,4.3164]
[1732616125518,51.55977535,231.82,231.71,27.78289135]
[1732616125722,51.55977535,231.82,231.72,27.78289135]
[1732616125918,27.78289135,231.82,231.68,4.3161]
[1732616126124,27.78289135,231.82,231.73,27.78289135]
[1732616126423,27.78289135,231.82,231.68,4.3161]
[1732616126625,32.09599135,231.86,231.79,27.78289135]
[1732616126827,27.78289135,231.88,231.81,28.29092585]
[1732616127230,27.78289135,231.84,231.81,0.5080345]
[1732616127436,27.78289135,231.82,231.81,0.5080345]
[1732616127741,27.78289135,231.86,231.81,0.5080345]
[1732616127951,27.78289135,231.9,231.81,0.5080345]
[1732616128130,4.3112,231.95,231.81,0.5080345]
[1732616128131,21.20640822,231.95,231.81,0.5080345]
[1732616128324,27.78289135,231.87,231.81,0.5080345]
[1732616128639,27.78289135,231.9,231.83,27.78289135]
[1732616129132,27.78289135,231.88,231.81,28.29092585]
[1732616129328,27.78289135,231.89,231.82,27.78289135]
[1732616130641,27.78289135,231.89,231.81,0.5080345]
[1732616130642,27.78289135,231.83,231.81,0.5080345]
[1732616130935,27.78289135,231.82,231.81,0.5080345]
[1732616132149,27.78289135,231.85,231.81,0.5080345]
[1732616132320,27.78289135,231.87,231.81,0.5080345]
[1732616132520,27.78289135,231.89,231.81,32.60462585]
[1732616132720,27.78289135,231.9,231.83,27.78289135]
[1732616132922,27.78289135,231.89,231.81,32.60462585]
[1732616133233,27.78289135,231.88,231.81,0.5080345]
[1732616133433,27.78289135,231.85,231.81,0.5080345]
[1732616134321,27.78289135,231.88,231.81,32.60462585]
[1732616134521,27.78289135,231.87,231.81,0.5080345]
[1732616134725,27.78289135,231.9,231.82,27.78289135]
[1732616135232,27.78289135,231.88,231.81,0.5080345]
[1732616135463,27.78289135,231.86,231.81,0.5080345]
[1732616135652,4.3108,231.98,231.85,27.78289135]
[1732616135837,4.3108,231.98,231.82,5.0]
[1732616135838,27.78289135,231.99,231.92,27.78289135]
[1732616136020,27.78289135,232.01,231.94,27.78289135]
[1732616136224,4.3095,232.05,231.91,22.1341]
[1732616136225,27.78289135,232.03,231.96,27.78289135]
[1732616136424,27.78289135,232.03,231.95,27.78289135]
[1732616136641,27.78289135,231.99,231.92,32.09469135]
[1732616136840,27.78289135,231.97,231.92,4.3118]
[1732616137237,27.78289135,231.94,231.91,22.1341]
[1732616137554,27.78289135,231.96,231.91,15.7396]
[1732616137855,27.78289135,231.95,231.91,15.7396]
[1732616138047,27.78289135,231.92,231.86,6.3945]
[1732616138348,15.0841,232.03,231.86,6.3945]
[1732616138349,27.78289135,231.91,231.86,6.3945]
[1732616138550,27.78289135,231.93,231.86,38.49019135]
[1732616138756,27.78289135,231.94,231.87,27.78289135]
[1732616139643,27.78289135,231.92,231.86,10.7073]
[1732616139850,27.78289135,231.94,231.87,27.78289135]
[1732616140565,27.78289135,231.94,231.86,10.7073]
[1732616140566,27.78289135,231.99,231.92,27.78289135]
[1732616140853,27.78289135,232.0,231.93,27.78289135]
[1732616141158,27.78289135,231.99,231.92,32.09459135]
[1732616141330,27.78289135,232.0,231.93,27.78289135]
[1732616141530,27.78289135,231.98,231.92,4.3117]
[1732616141739,27.78289135,231.94,231.9,4.312]
[1732616142031,27.78289135,231.95,231.9,4.312]
[1732616142225,27.78289135,231.97,231.9,4.312]
[1732616142425,4.309,232.07,231.92,27.78289135]
[1732616142631,27.78289135,232.0,231.93,4.3116]
[1732616143053,27.78289135,232.02,231.95,27.78289135]
[1732616143348,27.78289135,232.0,231.93,4.3116]
[1732616143651,27.78289135,231.98,231.91,32.09469135]
[1732616143958,32.09179135,232.08,231.92,25.0]
[1732616144127,32.09179135,232.08,231.91,4.3118]
[1732616144128,16.70025541,232.09,231.91,4.3118]
[1732616144334,33.58896363,232.09,231.91,4.3118]
[1732616144535,6.11710822,232.08,231.91,4.3118]
[1732616144741,15.0816,232.07,231.88,20.0]
[1732616144956,21.04422488,232.07,231.88,20.0]
[1732616145344,27.78289135,231.94,231.88,20.0]
[1732616145655,27.78289135,231.97,231.9,27.78289135]
[1732616145835,27.78289135,231.98,231.91,27.78289135]
[1732616146645,27.78289135,231.98,231.87,4.3127]
[1732616146646,27.78289135,231.95,231.87,4.3127]
[1732616146830,5.0,232.06,231.87,4.3127]
[1732616146831,27.78289135,231.92,231.87,4.3127]
[1732616147232,27.78289135,231.92,231.85,20.0525]
[1732616147659,27.78289135,231.93,231.85,47.83539135]
[1732616147957,27.78289135,232.03,231.92,6.2254]
[1732616148258,27.78289135,232.01,231.92,34.00829135]
[1732616148427,27.78289135,232.01,231.94,27.78289135]
[1732616148627,27.78289135,231.99,231.92,34.00829135]
[1732616149438,27.78289135,231.99,231.92,38.31999135]